fUSD/lending_fUSD_20250107
["ID","MTS","AMOUNT","RATE_DAILY","PERIOD"]
[348008226,1736265520548,-500.0,9.862e-05,2]
[348008227,1736265520571,-500.0,9.862e-05,2]
[348008228,1736265520598,-500.0,9.862e-05,2]
[348008229,1736265520625,-573.198,9.862e-05,2]
[348008230,1736265520650,-731.63,9.862e-05,2]
[348008231,1736265520676,-500.0,9.862e-05,2]
[348008232,1736265520701,-500.0,9.862e-05,2]
[348008233,1736265520725,-500.0,9.862e-05,2]
[348008234,1736265520749,-500.0,9.862e-05,2]
[348008235,1736265520774,-500.0,9.862e-05,2]
[348008236,1736265520799,-500.0,9.862e-05,2]
[348008237,1736265520822,-534.76,9.862e-05,2]
[348008238,1736265520846,-500.0,9.862e-05,2]
[348008239,1736265520869,-500.0,9.862e-05,2]
[348008240,1736265520894,-500.0,9.862e-05,2]
[348008241,1736265520920,-1136.76,9.862e-05,2]
[348008242,1736265520944,-500.0,9.862e-05,2]
[348008243,1736265520969,-500.0,9.862e-05,2]
[348008244,1736265520993,-500.0,9.862e-05,2]
[348008245,1736265521016,-500.0,9.862e-05,2]
[348008246,1736265521039,-500.0,9.862e-05,2]
[348008247,1736265521065,-2065.7,9.862e-05,2]
[348008248,1736265521089,-500.0,9.862e-05,2]
[348008249,1736265521113,-1100.65,9.862e-05,2]
[348008250,1736265521137,-500.0,9.862e-05,2]
[348008251,1736265521162,-500.0,9.862e-05,2]
[348008252,1736265521185,-500.0,9.862e-05,2]
[348008253,1736265521209,-500.0,9.862e-05,2]
[348008254,1736265521231,-500.0,9.862e-05,2]
[348008255,1736265521254,-500.0,9.862e-05,2]
[348008256,1736265521278,-500.0,9.862e-05,2]
[348008257,1736265521301,-580.67473313,9.862e-05,2]
[348008258,1736265521325,-502.32742071,9.862e-05,2]
[348008259,1736265521347,-500.0,9.862e-05,2]
[348008260,1736265521371,-500.0,9.862e-05,2]
[348008261,1736265521394,-500.0,9.862e-05,2]
[348008262,1736265521417,-500.0,9.862e-05,2]
[348008263,1736265521442,-583.26,9.862e-05,2]
[348008264,1736265521467,-500.0,9.862e-05,2]
[348008265,1736265521491,-500.0,9.862e-05,2]
[348008266,1736265521515,-500.0,9.862e-05,2]
[348008267,1736265521538,-500.0,9.862e-05,2]
[348008268,1736265521563,-500.0,9.862e-05,2]
[348008269,1736265521589,-500.0,9.862e-05,2]
[348008270,1736265521615,-500.0,9.862e-05,2]
[348008271,1736265521638,-500.0,9.862e-05,2]
[348008272,1736265521664,-707.35,9.862e-05,2]
[348008273,1736265521689,-620.23,9.862e-05,2]
[348008274,1736265521713,-500.0,9.862e-05,2]
[348008275,1736265521738,-1407.33,9.862e-05,2]
[348008276,1736265521764,-1251.52,9.862e-05,2]
[348008277,1736265521789,-755.18,9.862e-05,2]
[348008278,1736265522054,-500.0,9.862e-05,2]
[348008279,1736265522079,-500.0,9.862e-05,2]
[348008280,1736265522102,-500.0,9.862e-05,2]
[348008281,1736265522128,-500.0,9.862e-05,2]
[348008282,1736265522165,-500.0,9.862e-05,2]
[348008283,1736265522191,-500.0,9.862e-05,2]
[348008284,1736265522216,-500.0,9.862e-05,2]
[348008285,1736265522243,-500.0,9.862e-05,2]
[348008286,1736265522267,-630.86,9.862e-05,2]
[348008287,1736265522292,-500.0,9.862e-05,2]
[348008288,1736265522316,-915.81,9.862e-05,2]
[348008289,1736265522339,-500.0,9.862e-05,2]
[348008290,1736265522363,-500.0,9.862e-05,2]
[348008291,1736265522388,-500.0,9.862e-05,2]
[348008292,1736265522413,-613.91096147,9.862e-05,2]
[348008293,1736265522438,-527.42,9.862e-05,2]
[348008294,1736265522463,-500.0,9.862e-05,2]
[348008295,1736265522487,-500.0,9.862e-05,2]
[348008296,1736265522512,-500.0,9.862e-05,2]
[348008297,1736265522536,-500.0,9.862e-05,2]
[348008298,1736265522562,-984.05,9.862e-05,2]
[348008299,1736265522590,-500.0,9.862e-05,2]
[348008300,1736265522616,-259.96327341,9.862e-05,2]
[348008301,1736265522642,-511.57,9.862e-05,2]
[348008302,1736265522670,-500.0,9.862e-05,2]
[348008303,1736265522696,-876.92,9.862e-05,2]
[348008304,1736265522720,-274.64261685,9.862e-05,2]
[348008305,1736265522746,-500.0,9.862e-05,2]
[348008306,1736265522769,-330.38036431,9.862e-05,2]
[348008307,1736265522794,-522.25,9.862e-05,2]
[348008308,1736265522819,-500.0,9.862e-05,2]
[348008309,1736265522843,-503.54732044,9.862e-05,2]
[348008310,1736265522868,-506.97960261,9.862e-05,2]
[348008311,1736265522892,-502.92852689,9.862e-05,2]
[348008312,1736265522919,-507.48040904,9.862e-05,2]
[348008313,1736265522944,-504.57955569,9.862e-05,2]
[348008314,1736265522972,-500.0,9.862e-05,2]
[348008315,1736265522997,-500.0,9.862e-05,2]
[348008316,1736265523023,-500.0,9.862e-05,2]
[348008317,1736265523052,-500.0,9.862e-05,2]
[348008318,1736265523077,-500.0,9.862e-05,2]
[348008319,1736265523103,-511.18690002,9.862e-05,2]
[348008320,1736265523127,-500.46931131,9.862e-05,2]
[348008321,1736265523152,-507.6204458,9.862e-05,2]
[348008322,1736265523179,-500.0,9.862e-05,2]
[348008323,1736265523205,-584.93,9.862e-05,2]
[348008324,1736265523229,-503.24728013,9.862e-05,2]
[348008325,1736265523255,-500.3865788,9.862e-05,2]
[348008326,1736265523281,-500.0,9.862e-05,2]
[348008327,1736265523307,-506.31625567,9.862e-05,2]
[348008328,1736265523331,-500.0,9.862e-05,2]
[348008329,1736265523355,-954.79,9.862e-05,2]
[348008330,1736265523381,-500.0,9.862e-05,2]
[348008331,1736265523405,-500.0,9.862e-05,2]
[348008332,1736265523430,-364.43318368,9.862e-05,2]
[348008333,1736265523457,-500.0,9.862e-05,2]
[348008334,1736265523481,-505.83182817,9.862e-05,2]
[348008335,1736265523506,-500.0,9.862e-05,2]
[348008336,1736265523530,-500.0,9.862e-05,2]
[348008337,1736265523555,-500.0,9.862e-05,2]
[348008338,1736265523581,-500.0,9.862e-05,2]
[348008339,1736265523607,-500.0,9.862e-05,2]
[348008340,1736265523632,-503.4723339,9.862e-05,2]
[348008341,1736265523656,-500.0,9.862e-05,2]
[348008342,1736265523684,-500.0,9.862e-05,2]
[348008343,1736265523709,-500.47188175,9.862e-05,2]
[348008344,1736265523735,-946.4,9.862e-05,2]
[348008345,1736265523758,-501.69880132,9.862e-05,2]
[348008346,1736265523784,-547.78,9.862e-05,2]
[348008347,1736265523808,-500.79562635,9.862e-05,2]
[348008348,1736265523832,-502.05793923,9.862e-05,2]
[348008349,1736265523856,-855.49,9.862e-05,2]
[348008350,1736265523881,-500.0,9.862e-05,2]
[348008351,1736265523904,-505.39036331,9.862e-05,2]
[348008352,1736265523931,-500.0,9.862e-05,2]
[348008353,1736265523955,-1600.82,9.862e-05,2]
[348008354,1736265523979,-503.1218044,9.862e-05,2]
[348008355,1736265524003,-507.19,9.862e-05,2]
[348008356,1736265524026,-683.29,9.862e-05,2]
[348008357,1736265524050,-594.66,9.862e-05,2]
[348008358,1736265524075,-1040.89,9.862e-05,2]
[348008359,1736265524099,-3175.27,9.862e-05,2]
[348008360,1736265524122,-500.0,9.862e-05,2]
[348008361,1736265524147,-508.01167748,9.862e-05,2]
[348008362,1736265524175,-501.73024803,9.862e-05,2]
[348008363,1736265524200,-500.0,9.862e-05,2]
[348008364,1736265524226,-500.0,9.862e-05,2]
[348008365,1736265524250,-501.7988762,9.862e-05,2]
[348008366,1736265524275,-500.0,9.862e-05,2]
[348008367,1736265524301,-505.38887546,9.862e-05,2]
[348008368,1736265524326,-2934.47,9.862e-05,2]
[348008369,1736265524350,-530.92500671,9.862e-05,2]
[348008370,1736265524374,-1092.54,9.862e-05,2]
[348008371,1736265524399,-500.0,9.862e-05,2]
[348008372,1736265524425,-650.65,9.862e-05,2]
[348008373,1736265524451,-1737.91,9.862e-05,2]
[348008374,1736265524477,-500.0,9.862e-05,2]
[348008375,1736265524502,-501.05913023,9.862e-05,2]
[348008376,1736265524526,-592.28,9.862e-05,2]
[348008377,1736265524551,-1625.37,9.862e-05,2]
[348008378,1736265524578,-500.0,9.862e-05,2]
[348008379,1736265524604,-500.0,9.862e-05,2]
[348008380,1736265524629,-500.0,9.862e-05,2]
[348008381,1736265524653,-502.32624539,9.862e-05,2]
[348008382,1736265524681,-500.0,9.862e-05,2]
[348008383,1736265524707,-3214.0,9.862e-05,2]
[348008384,1736265524731,-491.71625107,9.862e-05,2]
[348008385,1736265524755,-500.0,9.862e-05,2]
[348008386,1736265524780,-500.0,9.862e-05,2]
[348008387,1736265524804,-500.0,9.862e-05,2]
[348008388,1736265524829,-704.07,9.862e-05,2]
[348008389,1736265524852,-500.0,9.862e-05,2]
[348008390,1736265524876,-500.0,9.862e-05,2]
[348008391,1736265524901,-886.01,9.862e-05,2]
[348008392,1736265524927,-500.0,9.862e-05,2]
[348008393,1736265524954,-500.0,9.862e-05,2]
[348008394,1736265524983,-500.0,9.862e-05,2]
[348008395,1736265525008,-500.0,9.862e-05,2]
[348008396,1736265525294,-500.0,9.862e-05,2]
[348008397,1736265525322,-500.0,9.862e-05,2]
[348008398,1736265525349,-500.0,9.862e-05,2]
[348008399,1736265525376,-938.09,9.862e-05,2]
[348008400,1736265525402,-500.0,9.862e-05,2]
[348008401,1736265525429,-500.0,9.862e-05,2]
[348008402,1736265525455,-2120.69,9.862e-05,2]
[348008403,1736265525480,-500.0,9.862e-05,2]
[348008404,1736265525504,-500.0,9.862e-05,2]
[348008405,1736265525529,-1102.88,9.862e-05,2]
[348008406,1736265525555,-500.0,9.862e-05,2]
[348008407,1736265525581,-822.94,9.862e-05,2]
[348008408,1736265525605,-500.0,9.862e-05,2]
[348008409,1736265525631,-500.0,9.862e-05,2]
[348008410,1736265525656,-500.0,9.862e-05,2]
[348008411,1736265525688,-500.0,9.862e-05,2]
[348008412,1736265525714,-605.59,9.862e-05,2]
[348008413,1736265525739,-500.0,9.862e-05,2]
[348008414,1736265525769,-1456.6,9.862e-05,2]
[348008415,1736265525796,-500.0,9.862e-05,2]
[348008416,1736265525821,-500.0,9.862e-05,2]
[348008417,1736265525847,-500.0,9.862e-05,2]
[348008418,1736265525873,-500.0,9.862e-05,2]
[348008419,1736265525899,-739.03,9.862e-05,2]
[348008420,1736265525926,-500.0,9.862e-05,2]
[348008421,1736265525951,-2855.28,9.862e-05,2]
[348008422,1736265525978,-491.14086502,9.862e-05,2]
[348008423,1736265526001,-500.0,9.862e-05,2]
[348008424,1736265526026,-886.73,9.862e-05,2]
[348008425,1736265526052,-500.0,9.862e-05,2]
[348008426,1736265526076,-505.17205214,9.862e-05,2]
[348008427,1736265526100,-500.0,9.862e-05,2]
[348008428,1736265526125,-500.0,9.862e-05,2]
[348008429,1736265526150,-500.0,9.862e-05,2]
[348008430,1736265526179,-1560.63,9.862e-05,2]
[348008431,1736265526204,-2400.8,9.862e-05,2]
[348008432,1736265526226,-500.0,9.862e-05,2]
[348008433,1736265526254,-4471.6,9.862e-05,2]
[348008434,1736265526278,-1357.95,9.862e-05,2]
[348008435,1736265526301,-602.52,9.862e-05,2]
[348008436,1736265526323,-500.0,9.862e-05,2]
[348008437,1736265526351,-500.0,9.862e-05,2]
[348008438,1736265526375,-500.0,9.862e-05,2]
[348008439,1736265526399,-500.0,9.862e-05,2]
[348008440,1736265526425,-654.13,9.862e-05,2]
[348008441,1736265526450,-2233.06,9.862e-05,2]
[348008442,1736265526475,-500.0,9.862e-05,2]
[348008443,1736265526499,-864.01,9.862e-05,2]
[348008444,1736265526523,-500.0,9.862e-05,2]
[348008445,1736265526548,-500.0,9.862e-05,2]
[348008446,1736265526577,-500.0,9.862e-05,2]
[348008447,1736265526603,-570.74,9.862e-05,2]
[348008448,1736265526629,-500.0,9.862e-05,2]
[348008449,1736265526654,-500.0,9.862e-05,2]
[348008450,1736265526682,-500.0,9.862e-05,2]
[348008451,1736265526708,-3495.57,9.862e-05,2]
[348008452,1736265526733,-500.0,9.862e-05,2]
[348008453,1736265526757,-500.0,9.862e-05,2]
[348008454,1736265526782,-2293.66,9.862e-05,2]
[348008455,1736265526806,-500.0,9.862e-05,2]
[348008456,1736265526829,-500.0,9.862e-05,2]
[348008457,1736265526854,-555.28,9.862e-05,2]
[348008458,1736265526879,-500.0,9.862e-05,2]
[348008459,1736265526903,-500.0,9.862e-05,2]
[348008460,1736265526928,-500.0,9.862e-05,2]
[348008461,1736265526953,-500.0,9.862e-05,2]
[348008462,1736265526980,-2064.12,9.862e-05,2]
[348008463,1736265527004,-500.0,9.862e-05,2]
[348008464,1736265527028,-500.0,9.862e-05,2]
[348008465,1736265527054,-500.0,9.862e-05,2]
[348008466,1736265527078,-500.0,9.862e-05,2]
[348008467,1736265527105,-599.34,9.862e-05,2]
[348008468,1736265527129,-620.28,9.862e-05,2]
[348008469,1736265527151,-500.0,9.862e-05,2]
[348008470,1736265527177,-500.0,9.862e-05,2]
[348008471,1736265527201,-500.0,9.862e-05,2]
[348008472,1736265527224,-500.0,9.862e-05,2]
[348008473,1736265527249,-2101.36,9.862e-05,2]
[348008474,1736265527273,-653.17,9.862e-05,2]
[348008475,1736265527296,-500.0,9.862e-05,2]
[348008476,1736265527321,-500.0,9.862e-05,2]
[348008477,1736265527346,-1608.54,9.862e-05,2]
[348008478,1736265527370,-673.7,9.862e-05,2]
[348008479,1736265527394,-1644.21,9.862e-05,2]
[348008480,1736265527420,-906.95,9.862e-05,2]
[348008481,1736265527443,-557.74,9.862e-05,2]
[348008482,1736265527467,-568.3,9.862e-05,2]
[348008483,1736265527490,-500.0,9.862e-05,2]
[348008484,1736265527514,-500.0,9.862e-05,2]
[348008485,1736265527538,-3495.24,9.862e-05,2]
[348008486,1736265527565,-500.0,9.862e-05,2]
[348008487,1736265527592,-500.0,9.862e-05,2]
[348008488,1736265527617,-500.0,9.862e-05,2]
[348008489,1736265527642,-1873.38,9.862e-05,2]
[348008490,1736265527670,-500.0,9.862e-05,2]
[348008491,1736265527697,-2347.98,9.862e-05,2]
[348008492,1736265527723,-500.0,9.863e-05,2]
[348008493,1736265527748,-500.0,9.863e-05,2]
[348008494,1736265527772,-630.86,9.863e-05,2]
[348008495,1736265527796,-500.0,9.863e-05,2]
[348008496,1736265527821,-500.0,9.863e-05,2]
[348008497,1736265527845,-500.0,9.863e-05,2]
[348008498,1736265527870,-500.0,9.863e-05,2]
[348008499,1736265527894,-500.0,9.863e-05,2]
[348008500,1736265527921,-500.0,9.863e-05,2]
[348008501,1736265527945,-500.0,9.863e-05,2]
[348008502,1736265527973,-648.49,9.863e-05,2]
[348008503,1736265527996,-195.79310342,9.863e-05,2]
[348008504,1736265528023,-500.0,9.863e-05,2]
[348008505,1736265528049,-500.0,9.863e-05,2]
[348008506,1736265528073,-502.47876464,9.863e-05,2]
[348008507,1736265528098,-500.0,9.863e-05,2]
[348008508,1736265528123,-869.18,9.863e-05,2]
[348008509,1736265528148,-656.08,9.863e-05,2]
[348008510,1736265528175,-500.0,9.863e-05,2]
[348008511,1736265528200,-522.34,9.863e-05,2]
[348008512,1736265528226,-500.0,9.863e-05,2]
[348008513,1736265528251,-582.88,9.863e-05,2]
[348008514,1736265528464,-500.0,9.863e-05,2]
[348008515,1736265528498,-500.0,9.863e-05,2]
[348008516,1736265528523,-500.0,9.863e-05,2]
[348008517,1736265528549,-500.0,9.863e-05,2]
[348008518,1736265528576,-559.82,9.863e-05,2]
[348008519,1736265528603,-500.0,9.863e-05,2]
[348008520,1736265528628,-500.0,9.863e-05,2]
[348008521,1736265528657,-1321.85,9.863e-05,2]
[348008522,1736265528685,-500.0,9.863e-05,2]
[348008523,1736265528712,-549.65,9.863e-05,2]
[348008524,1736265528737,-500.0,9.863e-05,2]
[348008525,1736265528763,-500.0,9.863e-05,2]
[348008526,1736265528788,-500.0,9.863e-05,2]
[348008527,1736265528813,-500.0,9.863e-05,2]
[348008528,1736265528838,-500.0,9.863e-05,2]
[348008529,1736265528863,-818.05,9.863e-05,2]
[348008530,1736265528889,-500.0,9.863e-05,2]
[348008531,1736265528913,-500.0,9.863e-05,2]
[348008532,1736265528940,-500.0,9.863e-05,2]
[348008533,1736265528967,-550.38,9.863e-05,2]
[348008534,1736265528992,-500.0,9.863e-05,2]
[348008535,1736265529018,-991.75,9.863e-05,2]
[348008536,1736265529044,-500.0,9.863e-05,2]
[348008537,1736265529068,-500.0,9.863e-05,2]
[348008538,1736265529094,-767.64,9.863e-05,2]
[348008539,1736265529118,-500.0,9.863e-05,2]
[348008540,1736265529143,-613.67,9.863e-05,2]
[348008541,1736265529174,-500.0,9.863e-05,2]
[348008542,1736265529198,-501.67967301,9.863e-05,2]
[348008543,1736265529225,-986.72,9.863e-05,2]
[348008544,1736265529250,-500.0,9.863e-05,2]
[348008545,1736265529277,-500.0,9.863e-05,2]
[348008546,1736265529304,-628.65,9.863e-05,2]
[348008547,1736265529329,-500.0,9.863e-05,2]
[348008548,1736265529354,-500.0,9.863e-05,2]
[348008549,1736265529380,-631.23,9.863e-05,2]
[348008550,1736265529406,-500.0,9.863e-05,2]
[348008551,1736265529436,-500.0,9.863e-05,2]
[348008552,1736265529465,-1239.39,9.863e-05,2]
[348008553,1736265529490,-646.42,9.863e-05,2]
[348008554,1736265529516,-500.0,9.863e-05,2]
[348008555,1736265529540,-500.0,9.863e-05,2]
[348008556,1736265529569,-1206.16,9.863e-05,2]
[348008557,1736265529596,-500.0,9.863e-05,2]
[348008558,1736265529623,-655.64,9.863e-05,2]
[348008559,1736265529647,-500.0,9.863e-05,2]
[348008560,1736265529675,-500.0,9.863e-05,2]
[348008561,1736265529701,-845.59,9.863e-05,2]
[348008562,1736265529726,-500.0,9.863e-05,2]
[348008563,1736265529751,-500.0,9.863e-05,2]
[348008564,1736265529778,-529.29,9.863e-05,2]
[348008565,1736265529805,-669.97,9.863e-05,2]
[348008566,1736265529829,-500.0,9.864e-05,2]
[348008567,1736265529853,-600.0,9.864e-05,2]
[348008568,1736265529880,-500.0,9.963e-05,2]
[348008569,1736265529907,-1141.56,9.964e-05,2]
[348008570,1736265529938,-1891.87,9.964e-05,2]
[348008571,1736265529968,-1225.614584,9.964e-05,2]
[348008572,1736265532780,176.0,3.088e-05,2]
[348008573,1736265547392,-201.33,9.515e-05,2]
[348008574,1736265547417,-5000.0,9.762e-05,2]
[348008575,1736265547445,-500.0,9.861e-05,2]
[348008576,1736265547472,-500.0,9.861e-05,2]
[348008577,1736265547497,-500.0,9.861e-05,2]
[348008578,1736265547523,-1071.15,9.861e-05,2]
[348008579,1736265547549,-300.0,9.861e-05,2]
[348008580,1736265547579,-1499.53,9.861e-05,2]
[348008581,1736265547604,-500.0,9.862e-05,2]
[348008582,1736265547630,-500.0,9.862e-05,2]
[348008583,1736265547655,-500.0,9.862e-05,2]
[348008584,1736265547684,-500.0,9.862e-05,2]
[348008585,1736265547710,-500.0,9.862e-05,2]
[348008586,1736265547736,-500.0,9.862e-05,2]
[348008587,1736265547762,-500.0,9.862e-05,2]
[348008588,1736265547788,-1072.36,9.862e-05,2]
[348008589,1736265547814,-500.0,9.862e-05,2]
[348008590,1736265547839,-997.52,9.862e-05,2]
[348008591,1736265547865,-500.0,9.862e-05,2]
[348008592,1736265547892,-500.0,9.862e-05,2]
[348008593,1736265547918,-500.0,9.862e-05,2]
[348008594,1736265547947,-2921.64,9.862e-05,2]
[348008595,1736265547977,-552.98,9.862e-05,2]
[348008596,1736265548005,-4103.75,9.862e-05,2]
[348008597,1736265548031,-1706.455416,9.964e-05,2]
[348008598,1736265548056,-2119.86,9.964e-05,2]
[348008599,1736265548081,-500.0,9.964e-05,2]
[348008600,1736265548106,-500.0,9.964e-05,2]
[348008601,1736265548131,-1273.21,9.964e-05,2]
[348008602,1736265548157,-745.93,9.964e-05,2]
[348008603,1736265548184,-1533.48,9.964e-05,2]
[348008604,1736265548210,-3741.42,9.964e-05,2]
[348008605,1736265548233,-558.96,9.964e-05,2]
[348008606,1736265548258,-1151.36,9.964e-05,2]
[348008607,1736265548286,-2060.18,9.964e-05,2]
[348008608,1736265548311,-1195.44,9.964e-05,2]
[348008609,1736265548338,-1540.2,9.964e-05,2]
[348008610,1736265548363,-1351.21,9.964e-05,2]
[348008611,1736265548388,-1315.58,9.964e-05,2]
[348008612,1736265548414,-869.52,9.964e-05,2]
[348008613,1736265548441,-693.27,9.964e-05,2]
[348008614,1736265548467,-3161.62,9.964e-05,2]
[348008615,1736265548494,-500.0,9.964e-05,2]
[348008616,1736265548520,-1290.6,9.964e-05,2]
[348008617,1736265548546,-1523.81,9.964e-05,2]
[348008618,1736265548575,-2186.94,9.964e-05,2]
[348008619,1736265548604,-2479.75,9.964e-05,2]
[348008620,1736265548631,-3662.67,9.964e-05,2]
[348008621,1736265548658,-801.74,9.964e-05,2]
[348008622,1736265548686,-500.0,9.965e-05,2]
[348008623,1736265548713,-500.0,9.965e-05,2]
[348008624,1736265548739,-500.0,9.999e-05,2]
[348008625,1736265548765,-566.24938533,9.999e-05,2]
[348008626,1736265548790,-257.73656807,0.0001,2]
[348008627,1736265549106,500.0,9.862e-05,2]
[348008628,1736265552514,500.31145207,9.862e-05,2]
[348008629,1736265553355,500.0,9.862e-05,2]
[348008630,1736265554099,1236.83,9.964e-05,2]
[348008631,1736265554135,729.71,9.861e-05,2]
[348008632,1736265554612,503.35668402,9.862e-05,2]
[348008633,1736265557280,2013.09,9.862e-05,2]
[348008634,1736265558209,846.94,9.861e-05,2]
[348008635,1736265558547,1238.12,9.861e-05,2]
[348008636,1736265559648,8439.33,9.964e-05,2]
[348008637,1736265559893,500.0,9.862e-05,2]
[348008638,1736265560279,500.0,9.862e-05,2]
[348008639,1736265560370,500.0,9.862e-05,2]
[348008640,1736265562025,500.0,9.861e-05,2]
[348008641,1736265562359,500.0,9.862e-05,2]
[348008642,1736265566807,639.68,9.861e-05,2]
[348008643,1736265567660,2199.61,9.964e-05,2]
[348008644,1736265567757,500.0,9.861e-05,2]
[348008645,1736265568208,500.0,9.862e-05,2]
[348008646,1736265569025,3080.08,9.862e-05,2]
[348008647,1736265570060,534.9,9.862e-05,2]
[348008648,1736265571351,500.0,9.862e-05,2]
[348008649,1736265572760,506.90764995,9.862e-05,2]
[348008650,1736265573243,514.03,9.862e-05,2]
[348008651,1736265573281,500.0,9.862e-05,2]
[348008652,1736265576863,500.0,9.862e-05,2]
[348008653,1736265577210,8530.6,9.862e-05,2]
[348008654,1736265577446,500.0,9.861e-05,2]
[348008655,1736265578215,500.0,9.862e-05,2]
[348008656,1736265579395,500.0,9.862e-05,2]
[348008657,1736265581505,500.0,9.862e-05,2]
[348008658,1736265581546,579.43,9.862e-05,2]
[348008659,1736265583256,3648.71,9.862e-05,2]
[348008660,1736265584422,633.1,9.861e-05,2]
[348008661,1736265586009,500.0,9.862e-05,2]
[348008662,1736265587627,500.0,9.861e-05,2]
[348008663,1736265588261,1760.38,9.964e-05,2]
[348008664,1736265590298,153.0,3.088e-05,2]
[348008665,1736265590526,500.0,9.862e-05,2]
[348008666,1736265591250,1030.01,9.861e-05,2]
[348008667,1736265593624,500.0,9.862e-05,2]
[348008668,1736265594512,500.0,9.862e-05,2]
[348008669,1736265596246,947.28,9.862e-05,2]
[348008670,1736265596718,1979.63,9.861e-05,2]
[348008671,1736265597043,500.0,9.862e-05,2]
[348008672,1736265599984,736.81,9.861e-05,2]
[348008673,1736265601396,560.21,9.862e-05,2]
[348008674,1736265602274,500.0,9.862e-05,2]
[348008675,1736265602479,3682.61,9.964e-05,2]
[348008676,1736265603221,600.0,9.864e-05,2]
[348008677,1736265604135,500.0,9.861e-05,2]
[348008678,1736265608203,1186.53,9.861e-05,2]
[348008679,1736265610880,1301.37,9.861e-05,2]
[348008680,1736265611098,675.78,9.862e-05,2]
[348008681,1736265611850,1030.62,9.861e-05,2]
[348008682,1736265612431,547.46,9.861e-05,2]
[348008683,1736265614690,500.0,9.862e-05,2]
[348008684,1736265615466,1471.47,9.862e-05,2]
[348008685,1736265615973,529.85,9.862e-05,2]
[348008686,1736265617041,1430.9,9.964e-05,2]
[348008687,1736265619275,500.0,9.862e-05,2]
[348008688,1736265619499,500.0,9.861e-05,2]
[348008689,1736265620921,1302.79,9.862e-05,2]
[348008690,1736265621330,879.72,9.861e-05,2]
[348008691,1736265622102,1285.78,9.861e-05,2]
[348008692,1736265624086,500.0,9.862e-05,2]
[348008693,1736265624864,500.0,9.861e-05,2]
[348008694,1736265628275,587.98191459,9.862e-05,2]
[348008695,1736265628857,1109.29,9.861e-05,2]
[348008696,1736265630195,1099.08,9.862e-05,2]
[348008697,1736265630729,500.0,9.862e-05,2]
[348008698,1736265631648,500.0,9.861e-05,2]
[348008699,1736265632381,500.0,9.861e-05,2]
[348008700,1736265632475,891.46,9.862e-05,2]
[348008701,1736265633721,8457.36,9.964e-05,2]
[348008702,1736265634628,500.0,9.861e-05,2]
[348008703,1736265634754,500.0,9.862e-05,2]
[348008704,1736265635256,573.03,9.861e-05,2]
[348008705,1736265637978,500.0,9.861e-05,2]
[348008706,1736265638014,2107.96,9.964e-05,2]
[348008707,1736265638079,504.25552189,9.862e-05,2]
[348008708,1736265638779,200.13270486,9.813e-05,2]
[348008709,1736265639304,500.0,9.861e-05,2]
[348008710,1736265640218,500.0,9.861e-05,2]
[348008711,1736265640521,500.0,9.862e-05,2]
[348008712,1736265640596,1348.69,9.861e-05,2]
[348008713,1736265641119,2252.53,9.964e-05,2]
[348008714,1736265641481,2424.79,9.862e-05,2]
[348008715,1736265641524,2269.3,9.862e-05,2]
[348008716,1736265641732,1043.16,9.861e-05,2]
[348008717,1736265642385,724.74,9.861e-05,2]
[348008718,1736265642534,500.0,9.861e-05,2]
[348008719,1736265644208,500.0,9.861e-05,2]
[348008720,1736265644312,1897.14,9.861e-05,2]
[348008721,1736265645220,703.21,9.861e-05,2]
[348008722,1736265645681,2752.77,9.861e-05,2]
[348008723,1736265645793,1073.81,8.219e-05,2]
[348008724,1736265646961,500.0,9.861e-05,2]
[348008725,1736265648029,500.0,9.861e-05,2]